bitfinex-derivatives/quotes_ETHF0:USTF0_20250620
["timestamp","ask_amount","ask_price","bid_price","bid_amount"]
[1750424326493,33.12559658,2552.4,2552.3,1.78353]
[1750424327198,32.34209658,2552.4,2552.3,1.78353]
[1750424327689,33.12559658,2552.4,2552.3,1.78353]
[1750424327881,32.34209658,2552.4,2552.3,1.78353]
[1750424328082,31.04599658,2552.4,2552.3,1.78353]
[1750424330590,31.82949658,2552.4,2552.3,1.78353]
[1750424330789,33.11329658,2552.4,2552.3,1.78353]
[1750424333294,32.32979658,2552.4,2552.3,1.78353]
[1750424334995,31.04299658,2552.4,2552.3,1.78353]
[1750424335193,30.97265877,2552.4,2552.3,1.78353]
[1750424338198,31.04199658,2552.4,2552.3,1.78353]
[1750424339294,31.03999658,2552.4,2552.3,1.78353]
[1750424339496,1.14099658,2552.4,2552.3,3.14463]
[1750424339894,0.06933781,2552.4,2552.3,3.14463]
[1750424340300,0.06933781,2552.4,2552.3,6.35243]
[1750424340797,8.45228338,2553.0,2552.9,0.78334]
[1750424341098,37.85512553,2553.0,2552.9,0.78334]
[1750424341295,39.11112553,2553.0,2552.9,0.78334]
[1750424341496,36.76684215,2553.0,2552.9,0.78334]
[1750424341693,39.11112553,2553.0,2552.9,0.78334]
[1750424341899,36.76684215,2553.0,2552.9,0.78334]
[1750424343296,35.98353215,2553.0,2552.9,0.78334]
[1750424343599,35.98353215,2553.0,2552.9,1.78334]
[1750424343997,10.93753215,2553.0,2552.9,1.78334]
[1750424344208,7.18503212,2553.0,2552.9,1.78334]
[1750424344703,6.108,2553.0,2552.9,1.78334]
[1750424345305,9.18000003,2553.0,2552.9,1.78334]
[1750424345802,32.98400003,2553.0,2552.9,1.78334]
[1750424347305,33.76731003,2553.0,2552.9,1.78334]
[1750424348213,32.98400003,2553.0,2552.9,1.0]
[1750424348507,33.76731003,2553.0,2552.9,1.78334]
[1750424349907,32.98400003,2553.0,2552.9,1.78334]
[1750424351015,33.76731003,2553.0,2552.9,1.78334]
[1750424351203,34.84001299,2553.0,2552.9,1.78334]
[1750424351713,34.05670299,2553.0,2552.9,1.78334]
[1750424352110,35.33570299,2553.0,2552.9,1.78334]
[1750424355321,36.11901299,2553.0,2552.9,1.78334]
[1750424355717,39.19101302,2553.0,2552.9,1.78334]
[1750424356120,36.11901299,2553.0,2552.9,1.78334]
[1750424359117,39.19101302,2553.0,2552.9,1.78334]
[1750424359323,36.11901299,2553.0,2552.9,1.78334]
[1750424359521,36.1883508,2553.0,2552.9,1.78334]
[1750424360226,36.1883508,2553.0,2552.9,1.0]
[1750424360425,39.26035083,2553.0,2552.9,1.78334]
[1750424360732,36.1883508,2553.0,2552.9,1.78334]
[1750424361534,39.26035083,2553.0,2552.9,1.78334]
[1750424362128,36.1883508,2553.0,2552.9,1.78334]
[1750424362536,39.26035083,2553.0,2552.9,1.78334]
[1750424362835,36.1883508,2553.0,2552.9,1.78334]
[1750424363230,39.26035083,2553.0,2552.9,1.78334]
[1750424363635,39.26035083,2553.0,2552.9,1.0]
[1750424363837,39.26035083,2553.0,2552.9,0.07074213]
[1750424364437,39.26035083,2553.0,2552.9,0.85408213]
[1750424364732,39.26035083,2553.0,2552.9,0.07074213]
[1750424365638,39.26035083,2553.0,2552.9,0.85408213]
[1750424366138,39.26035083,2553.0,2552.9,0.07074213]
[1750424366540,39.26035083,2553.0,2552.9,0.85408213]
[1750424367433,39.26035083,2553.0,2552.9,0.07074213]
[1750424368339,39.26035083,2553.0,2552.9,0.85408213]
[1750424369439,39.26035083,2553.0,2552.9,0.07074213]
[1750424370138,45.43540083,2553.0,2552.2,1.95884]
[1750424370339,0.78351,2552.5,2552.4,0.78344]
[1750424370541,33.75051003,2552.5,2552.4,0.78344]
[1750424370742,34.82321299,2552.5,2552.4,0.78344]
[1750424371438,34.03970299,2552.5,2552.4,0.78344]
[1750424371843,34.03970299,2552.5,2552.4,1.78344]
[1750424372545,34.82316299,2552.5,2552.4,1.78344]
[1750424375836,34.8925008,2552.5,2552.4,1.78344]
[1750424376640,34.8925008,2552.5,2552.4,1.7835]
[1750424378944,4.9975008,2552.5,2552.4,1.7835]
[1750424379145,34.8945008,2552.5,2552.4,1.7835]
[1750424379348,4.2140408,2552.5,2552.4,1.7835]
[1750424379849,34.1110408,2552.5,2552.4,1.7835]
[1750424383447,33.03833784,2552.5,2552.4,1.7835]
[1750424383644,34.11661341,2552.5,2552.4,1.7835]
[1750424386951,4.21961341,2552.5,2552.4,1.7835]
[1750424387151,34.11661341,2552.5,2552.4,1.7835]
[1750424390553,34.11561341,2552.5,2552.4,1.7835]
[1750424390753,4.21961341,2552.5,2552.4,1.7835]
[1750424390954,34.11561341,2552.5,2552.4,1.7835]
[1750424393158,34.89907341,2552.5,2552.4,1.7835]
[1750424393357,34.11561341,2552.5,2552.4,1.7835]
[1750424400063,34.0462756,2552.5,2552.4,1.7835]
[1750424400761,34.0432756,2552.5,2552.4,1.7835]
[1750424401269,34.11261341,2552.5,2552.4,1.7835]
[1750424401565,31.03961338,2552.5,2552.4,1.7835]
[1750424403667,1.14761338,2552.5,2552.4,4.9913]
[1750424403868,6.106,2552.9,2552.8,0.78337]
[1750424404065,29.892,2552.9,2552.8,0.78337]
[1750424404367,6.106,2552.9,2552.8,0.78337]
[1750424404562,5.41628341,2553.3,2553.2,0.78325]
[1750424404754,6.27980003,2553.6,2553.2,1.95813]
[1750424404960,6.27980003,2553.6,2553.5,0.78316]
[1750424405157,3.2078,2553.6,2553.5,0.78316]
[1750424405367,6.27980003,2553.6,2553.5,0.78316]
[1750424405668,7.06293003,2553.6,2553.5,0.78316]
[1750424406268,6.27980003,2553.6,2553.5,0.78316]
[1750424408373,7.59350003,2553.6,2553.5,0.78316]
[1750424408672,7.06293003,2553.6,2553.5,0.78316]
[1750424410073,6.27980003,2553.6,2553.5,0.78316]
[1750424410273,7.06293003,2553.6,2553.5,0.78316]
[1750424411866,6.27980003,2553.6,2553.5,0.78316]
[1750424412072,7.06293003,2553.6,2553.5,0.78316]
[1750424413375,0.78326,2553.3,2553.2,0.78323]
[1750424413577,36.94806003,2553.3,2553.2,0.78323]
[1750424413776,29.885,2553.3,2553.2,0.78323]
[1750424413977,32.95700003,2553.3,2553.2,0.78323]
[1750424414473,3.07200003,2553.3,2553.2,0.78323]
[1750424414672,32.95600003,2553.3,2553.2,3.99105]
[1750424415571,3.07200003,2553.5,2553.3,0.78322]
[1750424415773,3.07200003,2553.5,2553.4,0.6537]
[1750424416076,32.95600003,2553.5,2553.4,1.43689]
[1750424416374,9.17600003,2553.5,2553.4,1.43689]
[1750424416674,3.07200003,2553.5,2553.4,1.43689]
[1750424417077,3.07200003,2553.5,2553.4,2.80639]
[1750424419482,3.14133784,2553.5,2553.4,2.80639]
[1750424419979,0.06933781,2553.5,2553.4,2.80639]
[1750424423973,0.06933781,2553.5,2553.4,3.80639]
[1750424427370,3.14133784,2553.5,2553.4,2.43689]
[1750424427881,0.06933781,2553.5,2553.4,2.43689]
[1750424430681,0.74223781,2553.5,2553.4,2.43689]
[1750424431189,1.52539781,2553.5,2553.4,1.78319]
[1750424431584,2.79589781,2553.5,2553.4,1.78319]
[1750424431784,2.01273781,2553.5,2553.4,1.78319]
[1750424432888,0.74223781,2553.5,2553.4,1.78319]
[1750424434296,0.06933781,2553.5,2553.4,1.78319]
[1750424434480,6.17133781,2553.5,2553.4,1.78319]
[1750424435893,0.06933781,2553.5,2553.4,1.78319]
[1750424436791,6.102,2553.7,2553.6,0.78313]
[1750424437395,6.102,2553.7,2553.6,2.08993]
[1750424441099,3.07200003,2553.8,2553.7,0.7831]
[1750424441394,4.14437015,2553.8,2553.7,0.7831]
[1750424445606,1.07237012,2553.8,2553.7,0.7831]
[1750424445811,3.2078,2554.0,2553.9,0.78304]
[1750424446014,4.27989582,2554.0,2553.9,0.78304]
[1750424446415,5.06289582,2554.0,2553.9,1.78304]
[1750424446608,6.37469582,2554.0,2553.9,1.78304]
[1750424449815,5.59169582,2554.0,2553.9,1.78304]
[1750424450114,29.36269582,2554.0,2553.9,1.78304]
[1750424453816,28.05089582,2554.0,2553.9,1.78304]
[1750424455613,28.83389582,2554.0,2553.9,1.78304]
[1750424455914,28.05089582,2554.0,2553.9,1.78304]
[1750424457015,31.12289585,2554.0,2553.9,1.78304]
[1750424460311,7.35189585,2554.0,2553.9,1.78304]
[1750424460616,31.12089585,2554.0,2553.9,1.78304]
[1750424461906,7.35189585,2554.0,2553.9,1.78304]
[1750424462217,31.12089585,2554.0,2553.9,1.78304]
[1750424462626,31.90389585,2554.0,2553.9,1.78304]
[1750424465121,33.34793366,2554.0,2553.9,1.78304]
[1750424465624,32.56493366,2554.0,2553.9,1.78304]
[1750424465922,31.19023366,2554.0,2553.9,1.78304]
[1750424466218,4.34923363,2554.0,2553.9,1.78304]
[1750424468521,1.14143363,2554.0,2553.9,1.78304]
[1750424468722,0.06933781,2554.0,2553.9,3.12574]
[1750424468917,3.2078,2554.3,2554.2,0.78294]
[1750424469219,10.37933766,2554.3,2554.2,0.78294]
[1750424469524,7.17153766,2554.3,2554.2,3.99074]
[1750424469914,7.17153766,2554.3,2554.2,5.30634]
[1750424470115,1.07253766,2554.3,2554.2,5.30634]
[1750424470321,3.07200003,2554.8,2554.5,0.78285]
[1750424470523,29.866,2554.6,2554.5,0.78285]
[1750424470825,7.17103026,2554.6,2554.5,0.78285]
[1750424471727,6.099,2554.6,2554.5,0.78285]
[1750424473325,3.07200003,2554.8,2554.7,0.78279]
[1750424473525,34.0057186,2554.8,2554.7,0.78279]
[1750424475429,10.2407186,2554.8,2554.7,0.78279]
[1750424475726,34.0037186,2554.8,2554.7,0.78279]
[1750424476329,34.0037186,2554.8,2554.7,1.78279]
[1750424477528,32.93400003,2554.8,2554.7,1.78279]
[1750424478025,33.71676003,2554.8,2554.7,1.78279]
[1750424479431,33.78609784,2554.8,2554.7,1.78279]
[1750424479924,0.78292,2554.4,2554.3,0.78289]
[1750424480116,0.78296,2554.3,2554.2,0.78292]
[1750424480321,2.74376,2554.3,2554.2,0.78292]
[1750424480623,0.783,2554.1,2554.0,0.78297]
[1750424480926,27.61500003,2554.1,2554.0,0.78297]
[1750424481824,27.61500003,2554.1,2554.0,1.78297]
[1750424483731,26.83200003,2554.1,2554.0,1.78297]
[1750424484134,27.61497003,2554.1,2554.0,1.78297]
[1750424484334,26.83200003,2554.1,2554.0,1.78297]
[1750424484938,27.61497003,2554.1,2554.0,1.78297]
[1750424485133,26.83200003,2554.1,2554.0,1.78297]
[1750424485738,27.61497003,2554.1,2554.0,1.78297]
[1750424485935,26.83200003,2554.1,2554.0,1.78297]
[1750424486336,27.61497003,2554.1,2554.0,1.78297]
[1750424486539,26.83200003,2554.1,2554.0,1.78297]
[1750424488735,3.07200003,2554.1,2554.0,1.78297]
[1750424488939,3.72190003,2554.3,2554.2,0.78294]
[1750424489139,35.42844435,2554.3,2554.2,0.78294]
[1750424489635,34.64553435,2554.3,2554.2,0.78294]
[1750424490541,4.78653435,2554.3,2554.2,0.78294]
[1750424490737,30.5089,2554.3,2554.2,0.78294]
[1750424491740,29.859,2554.3,2554.2,0.78294]
[1750424492039,3.2078,2554.4,2554.3,0.78291]
[1750424492241,30.92182188,2554.4,2554.3,0.78291]
[1750424492538,29.857,2554.4,2554.3,0.78291]
[1750424492732,30.92189129,2554.4,2554.3,0.78291]
[1750424493039,29.857,2554.4,2554.3,0.78291]
[1750424493338,29.857,2554.4,2554.3,1.78291]
[1750424493541,30.92189124,2554.4,2554.3,1.78291]
[1750424496042,35.6734683,2554.4,2554.3,1.78291]
[1750424497438,36.4563483,2554.4,2554.3,1.78291]
[1750424498142,36.4563483,2554.4,2554.3,1.0]
[1750424498341,1.84777124,2554.4,2554.3,1.78291]
[1750424498541,35.6724683,2554.4,2554.3,1.78291]
[1750424498943,36.4553483,2554.4,2554.3,1.78291]
[1750424501943,35.6724683,2554.4,2554.3,1.78291]
[1750424502435,36.4553483,2554.4,2554.3,1.78291]
[1750424505146,39.6631483,2554.4,2554.3,1.78291]
[1750424507547,39.6631483,2554.4,2554.3,1.0]
[1750424507847,39.6631483,2554.4,2554.3,0.713711]
[1750424508550,39.6631483,2554.4,2554.3,1.496621]
[1750424509349,2.33935136,2554.7,2554.6,0.78282]
[1750424509544,0.78269,2555.1,2555.0,0.7827]
[1750424509852,24.59967,2555.2,2555.1,0.78265]
[1750424510045,30.5477,2555.2,2555.1,0.78265]
[1750424510253,31.33034,2555.2,2555.1,0.78265]
[1750424510447,30.5477,2555.2,2554.8,0.6295]
[1750424510648,0.78272,2555.0,2554.9,0.7827]
[1750424510849,24.62472,2555.0,2554.9,0.7827]
[1750424511049,23.842,2555.0,2554.9,0.7827]
[1750424513955,3.2078,2555.5,2554.9,9.91619706]
[1750424514256,30.124,2555.4,2555.3,0.78258]
[1750424515651,6.096,2555.4,2555.3,0.78258]
[1750424515851,30.122,2555.4,2555.3,0.78258]
[1750424516154,30.90458,2555.4,2555.3,0.78258]
[1750424516766,0.78267,2555.2,2555.1,0.78265]
[1750424516968,24.80667,2555.2,2555.1,0.78265]
[1750424517470,0.78267,2555.1,2555.0,0.78267]
[1750424517764,29.55823706,2555.2,2555.1,0.78267]
[1750424517966,35.65323706,2555.2,2555.1,0.78267]
[1750424518967,0.78269,2555.1,2555.0,0.78269]
[1750424519468,30.119,2555.2,2555.1,0.78267]
[1750424519664,30.90164,2555.2,2555.1,0.78267]
[1750424521367,30.88864,2555.2,2555.1,0.78267]
[1750424521672,6.87764,2555.2,2555.1,0.78267]
[1750424521971,30.89164,2555.2,2555.1,0.78267]
[1750424524072,6.87764,2555.2,2555.1,0.78267]
[1750424524258,30.88264,2555.2,2555.1,0.78267]
[1750424525076,30.95197781,2555.2,2555.1,0.78267]
[1750424526275,6.94697781,2555.2,2555.1,0.78267]
[1750424526476,30.94097781,2555.2,2555.1,0.78267]
[1750424526977,6.16433781,2555.2,2555.1,0.78267]
[1750424527176,30.15433781,2555.2,2555.1,0.78267]
[1750424527477,30.15433781,2555.2,2555.1,2.11657]
[1750424527774,30.93697781,2555.2,2555.1,2.11657]
[1750424528573,0.7827,2555.1,2555.0,0.78267]
[1750424528976,0.7827,2555.1,2555.0,2.11657]
[1750424529879,30.93699781,2555.2,2555.1,0.78267]
[1750424530374,30.14733781,2555.2,2555.1,5.53424706]
[1750424530577,30.14033781,2555.2,2555.1,5.53424706]
[1750424530782,0.06933781,2555.2,2555.1,5.53424706]
[1750424531075,6.30733781,2555.2,2555.1,5.53424706]
[1750424531276,0.06933781,2555.2,2555.1,5.53424706]
[1750424531477,6.30733781,2555.2,2555.1,5.53424706]
[1750424531672,0.06933781,2555.2,2555.1,5.53424706]
[1750424531873,6.30733781,2555.2,2555.1,5.53424706]
[1750424532273,0.06933781,2555.2,2555.1,5.53424706]
[1750424532473,6.30733781,2555.2,2555.1,5.53424706]
[1750424532674,0.06933781,2555.2,2555.1,5.53424706]
[1750424532977,6.30733781,2555.2,2555.1,5.53424706]
[1750424538285,7.08997781,2555.2,2555.1,5.53424706]
[1750424538588,6.30733781,2555.2,2555.1,5.53424706]
[1750424538780,6.30733781,2555.2,2555.1,0.78267]
[1750424540788,6.30733781,2555.2,2555.1,5.53424706]
[1750424543985,0.06933781,2555.2,2555.1,5.53424706]
[1750424544385,6.30733781,2555.2,2555.1,5.53424706]
[1750424544789,0.06933781,2555.2,2555.1,5.53424706]
[1750424545088,6.30733781,2555.2,2555.1,5.53424706]
[1750424548983,0.78256,2555.5,2555.1,5.53424706]
[1750424548984,0.6732,2555.7,2555.5,0.78252]
[1750424549296,7.28859441,2555.6,2555.5,8.74192706]
[1750424549497,7.28859441,2555.6,2555.5,10.06492706]
[1750424549697,1.05059441,2555.6,2555.5,10.06492706]
[1750424549887,7.28859441,2555.6,2555.5,10.06492706]
[1750424550386,1.05059441,2555.6,2555.5,10.06492706]
[1750424550790,7.28859441,2555.6,2555.5,10.06492706]
[1750424551587,7.28859441,2555.6,2555.5,5.31335]
[1750424551789,8.07111441,2555.6,2555.5,3.99035]
[1750424554496,8.14045222,2555.6,2555.5,3.99035]
[1750424554698,8.14045222,2555.6,2555.5,0.78255]
[1750424557803,7.35793222,2555.6,2555.5,0.78255]
[1750424558002,8.14045222,2555.6,2555.5,0.78255]
[1750424558798,7.35793222,2555.6,2555.5,0.78255]
[1750424559304,7.35793222,2555.6,2555.5,3.99035]
[1750424560400,1.11993222,2555.6,2555.5,3.99035]
[1750424560703,31.18093222,2555.6,2555.5,3.99035]
[1750424562903,31.18093222,2555.6,2555.5,10.02892706]
[1750424563902,0.78242,2556.0,2555.9,0.78242]
[1750424564103,31.51172,2556.0,2555.9,0.78242]
[1750424565107,1.46572,2556.0,2555.9,0.78242]
[1750424565407,31.51572,2556.0,2555.9,0.78242]
[1750424565811,1.46572,2556.0,2555.9,0.78242]
[1750424566005,0.78242,2555.9,2555.8,1.44134]
[1750424566307,0.78249,2555.8,2555.7,0.78247]
[1750424566607,25.96049,2555.8,2555.7,0.78247]
[1750424566807,30.71206706,2555.8,2555.7,0.78247]
[1750424567007,29.40006706,2555.8,2555.7,0.78247]
[1750424568304,0.78252,2555.6,2555.5,3.99033]
[1750424568607,0.78252,2555.6,2555.5,0.78253]
[1750424568608,35.57909706,2555.6,2555.5,0.78253]
[1750424568911,35.64843487,2555.6,2555.5,0.78253]
[1750424569711,35.57909706,2555.6,2555.5,0.78253]
[1750424569910,30.82752,2555.6,2555.5,0.78253]
[1750424571914,0.78251,2555.7,2555.5,0.78253]
[1750424572115,0.78251,2555.7,2555.6,0.78252]
[1750424572317,30.81651,2555.7,2555.6,0.78252]
[1750424575022,30.034,2555.7,2555.6,0.78252]
[1750424575322,0.78249,2555.8,2555.7,0.78245]
[1750424575715,30.80749,2555.8,2555.7,0.78245]
[1750424575915,31.85278501,2555.8,2555.7,0.78245]
[1750424578129,0.78255,2555.7,2555.6,0.78249]
[1750424578422,7.92972207,2555.7,2555.6,0.78249]
[1750424578810,0.78256,2555.6,2555.5,0.78252]
[1750424579016,26.33735501,2555.6,2555.5,0.78252]
[1750424580523,26.33735501,2555.6,2554.9,3.1139062]
[1750424580524,0.7827,2555.0,2554.9,3.1139062]
[1750424580730,0.78282,2554.7,2554.6,0.7828]
[1750424581025,0.78282,2554.7,2554.5,0.78282]
[1750424581026,0.78285,2554.6,2554.5,0.78282]
[1750424581226,8.00937972,2554.6,2554.5,0.78282]
[1750424581832,0.78285,2554.5,2554.4,3.99068]
[1750424582023,25.26695,2554.5,2554.4,3.99068]
[1750424582220,25.26695,2554.5,2554.4,3.2078]
[1750424582417,30.01852706,2554.5,2554.4,3.2078]
[1750424582823,30.01852706,2554.5,2554.4,3.99068]
[1750424583023,30.01852706,2554.5,2554.4,3.2078]
[1750424583226,30.01852706,2554.5,2554.4,3.99068]
[1750424583923,25.26695,2554.5,2554.4,3.99068]
[1750424585028,24.4841,2554.5,2554.4,3.99068]
[1750424585228,45.081,2555.1,2554.4,3.99068]
[1750424585426,0.78275,2554.9,2554.8,0.78273]
[1750424585623,1.82633233,2554.9,2554.8,0.78273]
[1750424585825,1.42072,2555.0,2554.9,0.78273]
[1750424586029,32.55019114,2555.0,2554.9,0.78273]
[1750424586234,1.11247114,2555.0,2554.9,0.78273]
[1750424586430,30.08733781,2555.0,2554.9,0.78273]
[1750424586631,30.09133781,2555.0,2554.9,0.78273]
[1750424586929,30.09133781,2555.0,2554.9,5.53430706]
[1750424588130,30.09133781,2555.0,2554.9,0.78273]
[1750424589231,30.87403781,2555.0,2554.9,0.78273]
[1750424590230,30.09133781,2555.0,2554.9,0.78273]
[1750424590931,30.87403781,2555.0,2554.9,2.15173]
[1750424591332,30.87403781,2555.0,2554.9,3.15173]
[1750424600137,30.09133781,2555.0,2554.9,3.15173]
[1750424600526,30.87403781,2555.0,2554.9,3.15173]
[1750424602837,30.87403781,2555.0,2554.9,1.0]
[1750424603132,0.78279,2554.7,2554.6,1.0]
[1750424603338,29.39236706,2554.7,2554.6,1.0]
[1750424603837,30.43630563,2554.7,2554.6,1.0]
[1750424604631,6.57838228,2554.7,2554.6,1.0]
[1750424604836,36.59738228,2554.7,2554.6,2.0]
[1750424605840,0.78294,2554.2,2554.1,0.6767]
[1750424606139,35.54951706,2554.2,2554.1,0.6767]
[1750424606436,0.78298,2554.1,2554.0,3.99078]
[1750424607926,0.78298,2554.1,2554.0,4.99078]
[1750424608839,35.54954706,2554.2,2554.1,0.78298]
[1750424609338,0.6669,2554.3,2554.2,0.78294]
[1750424609541,31.47483,2554.3,2554.2,0.78294]
[1750424610340,4.75157706,2554.6,2554.4,0.78286]
[1750424610534,31.06770054,2554.5,2554.4,0.78286]
[1750424610733,1.82859054,2554.5,2554.4,0.78286]
[1750424610940,31.85059054,2554.5,2554.4,0.78286]
[1750424611137,1.82859054,2554.5,2554.4,0.78286]
[1750424611441,31.84959054,2554.5,2554.4,0.78286]
[1750424612040,1.82855054,2554.5,2554.4,0.78286]
[1750424612242,31.06670054,2554.5,2554.4,0.78286]
[1750424612542,30.80385,2554.5,2554.4,0.78286]
[1750424612742,30.80385,2554.5,2554.4,2.09236]
[1750424614637,0.78285,2554.5,2554.4,2.09236]
[1750424614838,0.78285,2554.6,2554.5,0.78285]
[1750424615032,30.80082,2554.6,2554.5,0.78285]
[1750424616042,30.79882,2554.6,2554.5,0.78285]
[1750424616442,30.79782,2554.6,2554.5,0.78285]
[1750424617346,0.78282,2554.6,2554.5,0.78285]
[1750424617538,30.79382,2554.6,2554.5,0.78285]
[1750424618145,0.78282,2554.6,2554.5,0.78285]
[1750424618539,30.79382,2554.6,2554.5,0.78285]
[1750424619040,0.78285,2554.5,2554.4,2.09237]
[1750424619445,30.79185,2554.5,2554.4,2.09237]
[1750424619646,30.86118781,2554.5,2554.4,2.09237]
[1750424620044,30.07833781,2554.5,2554.4,2.09237]
[1750424621349,0.06933781,2554.5,2554.4,2.09237]
[1750424621540,30.07333781,2554.5,2554.4,2.09237]
[1750424621848,0.06933781,2554.5,2554.4,2.09237]
[1750424622047,30.07033781,2554.5,2554.4,2.09237]
[1750424623950,6.22533781,2554.5,2554.4,2.09237]
[1750424624546,7.00818781,2554.5,2554.4,2.09237]
[1750424624850,7.00818781,2554.5,2554.4,0.78287]
[1750424625151,6.22533781,2554.5,2554.4,0.78287]
[1750424626848,6.22533781,2554.5,2554.4,2.06127]
[1750424628354,6.22533781,2554.5,2554.4,3.06127]
[1750424629354,30.05033781,2554.5,2554.4,3.06127]
[1750424629747,0.06933781,2554.5,2554.4,3.06127]
[1750424629942,7.95937706,2555.0,2554.9,0.78273]
[1750424630148,39.65104887,2555.0,2554.9,0.78273]
[1750424630348,9.67204887,2555.0,2554.9,0.78273]
[1750424630548,39.65104887,2555.0,2554.9,0.78273]
[1750424631361,13.40297887,2555.0,2554.9,0.78273]
[1750424631559,37.22297887,2555.0,2554.9,0.78273]
[1750424632556,36.43824887,2555.0,2554.9,0.78273]
[1750424632859,37.22094887,2555.0,2554.9,0.78273]
[1750424635558,0.78276,2554.9,2554.8,0.78274]
[1750424635759,0.78276,2554.8,2554.7,0.78278]
[1750424635960,25.64323181,2554.8,2554.7,0.78278]
[1750424642370,24.84747181,2554.8,2554.7,0.78278]
[1750424642968,25.63023181,2554.8,2554.7,0.78278]
[1750424643470,25.63023181,2554.8,2554.7,1.78278]
[1750424643766,31.00247181,2554.8,2554.7,1.78278]
[1750424644272,31.00247181,2554.8,2554.7,3.15968]
[1750424644862,31.03580962,2554.8,2554.7,3.15968]
[1750424645168,7.23580962,2554.8,2554.7,3.15968]
[1750424645370,1.11580962,2554.8,2554.7,3.15968]
[1750424645669,31.03580962,2554.8,2554.7,3.15968]
[1750424647372,7.23580962,2554.8,2554.7,3.15968]
[1750424648470,45.081,2555.1,2554.7,7.91125706]
[1750424648672,45.081,2555.1,2555.0,0.7827]
[1750424649173,75.001,2555.1,2555.0,0.7827]
[1750424649569,75.001,2555.1,2555.0,2.1174]
[1750424650070,51.201,2555.1,2555.0,2.1174]
[1750424650272,45.081,2555.1,2555.0,2.1174]
[1750424650675,0.6238,2555.4,2555.3,0.78261]
[1750424650870,30.5428,2555.4,2555.3,0.78261]
[1750424651786,36.07695706,2555.4,2555.3,0.78261]
[1750424651970,35.45215706,2555.4,2555.3,0.78261]
[1750424652177,34.66957706,2555.4,2555.3,0.78261]
[1750424652480,35.45215706,2555.4,2555.3,0.78261]
[1750424652874,34.66957706,2555.4,2555.3,0.78261]
[1750424653479,10.87157706,2555.4,2555.3,0.78261]
[1750424653680,34.66957706,2555.4,2555.3,0.78261]
[1750424653982,49.6134,2555.9,2555.5,0.78255]
[1750424654180,31.38837,2555.8,2555.7,0.78249]
[1750424654483,6.12,2555.8,2555.7,0.78249]
[1750424654686,45.097,2555.9,2555.8,0.78245]
[1750424654872,75.014,2555.9,2555.8,0.78245]
[1750424655570,75.014,2555.9,2555.8,1.46275]
[1750424657684,45.097,2555.9,2555.8,1.46275]
[1750424657888,75.011,2555.9,2555.8,1.46275]
[1750424658083,75.011,2555.9,2555.8,2.77885]
[1750424658283,0.78239,2556.1,2556.0,0.78237]
[1750424658482,30.69639,2556.1,2556.0,0.78237]
[1750424658886,35.44796706,2556.1,2556.0,0.78237]
[1750424659292,34.66557706,2556.1,2556.0,0.78237]
[1750424659490,4.75157706,2556.1,2556.0,0.78237]
[1750424659987,0.78235,2556.2,2556.1,0.78236]
[1750424660186,30.69535,2556.2,2556.1,0.78236]
[1750424662590,0.78239,2556.0,2555.9,3.9902]
[1750424662790,29.32596706,2556.0,2555.9,3.9902]
[1750424663095,23.792,2556.0,2555.9,3.9902]
[1750424663790,24.57439,2556.0,2555.9,3.9902]
[1750424665389,23.792,2556.0,2555.9,3.9902]
[1750424665791,6.118,2556.1,2556.0,0.78239]
[1750424665990,29.909,2556.1,2556.0,0.78239]
[1750424666185,29.909,2556.1,2556.0,2.06789]
[1750424668289,6.118,2556.1,2556.0,2.06789]
[1750424668596,29.908,2556.1,2556.0,2.06789]
[1750424668988,30.69036,2556.1,2556.0,2.06789]
[1750424669591,30.69036,2556.1,2556.0,0.78239]
[1750424669792,5.53393706,2556.2,2556.1,0.78236]
[1750424669993,35.43993706,2556.2,2556.1,0.78236]
[1750424671890,34.65757706,2556.2,2556.1,0.78236]
[1750424672097,29.906,2556.2,2556.1,0.78236]
[1750424673193,1.43913,2556.3,2556.2,0.78233]
[1750424673396,31.34413,2556.3,2556.2,0.78233]
[1750424676782,0.78229,2556.4,2556.2,0.78233]
[1750424676990,45.87125,2556.5,2556.4,0.78227]
[1750424677295,75.77425,2556.5,2556.4,0.78227]
[1750424677682,74.992,2556.5,2556.4,0.78227]
[1750424678288,51.205,2556.5,2556.4,0.78227]
[1750424678483,74.992,2556.5,2556.4,0.78227]
[1750424679088,74.992,2556.5,2556.4,2.04197]
[1750424679794,74.991,2556.5,2556.4,2.04197]
[1750424681996,74.99,2556.5,2556.4,2.04197]
[1750424683393,75.77224,2556.5,2556.4,0.78227]
[1750424683598,80.52381706,2556.5,2556.4,0.78227]
[1750424683995,0.7823,2556.3,2556.2,3.99011]
[1750424684195,29.31887706,2556.3,2556.2,3.99011]
[1750424684901,23.785,2556.3,2556.2,3.99011]
[1750424685393,50.62284706,2556.5,2556.4,0.78227]
[1750424685593,81.56206619,2556.5,2556.4,0.78227]
[1750424688802,80.77879619,2556.5,2556.4,0.78227]
[1750424689001,46.12821913,2556.5,2556.4,0.78227]
[1750424689304,76.02721913,2556.5,2556.4,0.78227]
[1750424689495,46.12821913,2556.5,2556.4,0.78227]
[1750424689694,76.09655694,2556.5,2556.4,0.78227]
[1750424690103,46.19755694,2556.5,2556.4,0.78227]
[1750424690302,76.09591517,2556.5,2556.4,0.78227]
[1750424691291,76.87815517,2556.5,2556.4,0.78227]
[1750424691994,76.09591517,2556.5,2556.4,0.78227]
[1750424692391,76.87815517,2556.5,2556.4,0.78227]
[1750424693503,76.09591517,2556.5,2556.4,0.78227]
[1750424694995,76.87815517,2556.5,2556.4,0.78227]
[1750424695601,76.09591517,2556.5,2556.4,0.78227]
[1750424697203,3.2078,2557.1,2556.8,0.78212]
[1750424697402,1.68877341,2556.9,2556.8,0.78215]
[1750424697706,31.58677341,2556.9,2556.8,0.78215]
[1750424698106,31.58677341,2556.9,2556.8,5.78215]
[1750424698905,1.03907341,2556.9,2556.8,8.98995]
[1750424699105,29.898,2557.1,2557.0,0.78209]
[1750424699304,0.6707,2557.2,2557.1,0.78206]